Body Name,Document Number,Service,Type of Expenditure,Invoice Date,Supplier Name,Cost to the Council (Amount Exc VAT),Month
EREWASH BOROUGH COUNCIL,27601,Non Domestic Rates Retention  ,NNDR Tariff                   ,02-May-2023,DERBY CITY COUNCIL                      ,"598,414.09",May-23
EREWASH BOROUGH COUNCIL,27603,Non Domestic Rates Retention  ,NNDR Tariff                   ,22-May-2023,DERBY CITY COUNCIL                      ,"598,414.09",May-23
EREWASH BOROUGH COUNCIL,23143,Erewash Museum                ,Electricity                   ,20-Apr-2023,TOTALENERGIES GAS & POWER LTD           ,813.19,May-23
EREWASH BOROUGH COUNCIL,23144,Erewash Museum                ,Gas                           ,20-Apr-2023,TOTALENERGIES GAS & POWER LTD           ,544.89,May-23
EREWASH BOROUGH COUNCIL,23327,Reprographics                 ,Stationery                    ,21-Apr-2023,ANTALIS DOCUMENT SUPPLIES               ,266.00,May-23
EREWASH BOROUGH COUNCIL,22752,"Police, Crime Commissioner Com",Materials and Consumables     ,31-Mar-2023,JNE SECURITY LIMITED                    ,"2,071.00",May-23
EREWASH BOROUGH COUNCIL,22189,"Police, Crime Commissioner Com",Materials and Consumables     ,22-Mar-2023,SOLON SECURITY LTD                      ,"1,590.00",May-23
EREWASH BOROUGH COUNCIL,22189,"Police, Crime Commissioner Com",Materials and Consumables     ,22-Mar-2023,SOLON SECURITY LTD                      ,812.50,May-23
EREWASH BOROUGH COUNCIL,22189,"Police, Crime Commissioner Com",Materials and Consumables     ,22-Mar-2023,SOLON SECURITY LTD                      ,312.50,May-23
EREWASH BOROUGH COUNCIL,22189,"Police, Crime Commissioner Com",Materials and Consumables     ,22-Mar-2023,SOLON SECURITY LTD                      ,540.00,May-23
EREWASH BOROUGH COUNCIL,22189,"Police, Crime Commissioner Com",Materials and Consumables     ,22-Mar-2023,SOLON SECURITY LTD                      ,581.40,May-23
EREWASH BOROUGH COUNCIL,22189,"Police, Crime Commissioner Com",Materials and Consumables     ,22-Mar-2023,SOLON SECURITY LTD                      ,"3,225.00",May-23
EREWASH BOROUGH COUNCIL,22189,"Police, Crime Commissioner Com",Materials and Consumables     ,22-Mar-2023,SOLON SECURITY LTD                      ,595.00,May-23
EREWASH BOROUGH COUNCIL,24892,Transport Trading Account     ,Fuel                          ,31-May-2023,THE RIGHT FUELCARD COMPANY LTD          ,"2,360.30",May-23
EREWASH BOROUGH COUNCIL,22901,Transport Trading Account     ,Materials and Consumables     ,04-Apr-2023,STEVE BEAUMONT LTD T/A AUTOSMART        ,356.50,May-23
EREWASH BOROUGH COUNCIL,22926,Transport Trading Account     ,Materials and Consumables     ,06-Apr-2023,PARTIC MOTOR SPARES LTD                 ,709.44,May-23
EREWASH BOROUGH COUNCIL,22715,Household Waste Collection    ,Agency Staff                  ,06-Apr-2023,EXTRA PERSONNEL LTD                     ,"5,824.64",May-23
EREWASH BOROUGH COUNCIL,23824,Household Waste Collection    ,Agency Staff                  ,24-Feb-2023,EXTRA PERSONNEL LTD                     ,"4,858.03",May-23
EREWASH BOROUGH COUNCIL,23591,Household Waste Collection    ,Agency Staff                  ,28-Apr-2023,EXTRA PERSONNEL LTD                     ,"6,372.71",May-23
EREWASH BOROUGH COUNCIL,23148,Household Waste Collection    ,Agency Staff                  ,15-Apr-2023,WORKCHAIN LTD                           ,843.34,May-23
EREWASH BOROUGH COUNCIL,23547,Household Waste Collection    ,Agency Staff                  ,22-Apr-2023,WORKCHAIN LTD                           ,214.50,May-23
EREWASH BOROUGH COUNCIL,24135,Household Waste Collection    ,Training                      ,16-May-2023,ROAD HAULAGE ASSOCIATION                ,0.00,May-23
EREWASH BOROUGH COUNCIL,24136,Household Waste Collection    ,Training                      ,16-May-2023,ROAD HAULAGE ASSOCIATION                ,600.00,May-23
EREWASH BOROUGH COUNCIL,23612,Household Waste Collection    ,Training                      ,07-Apr-2023,ROLLIN TRANSPORT TRAINING               ,"1,650.00",May-23
EREWASH BOROUGH COUNCIL,23613,Household Waste Collection    ,Training                      ,07-Apr-2023,ROLLIN TRANSPORT TRAINING               ,"1,650.00",May-23
EREWASH BOROUGH COUNCIL,22543,Household Waste Collection    ,Tyres                         ,31-Mar-2023,LODGE TYRE COMPANY LTD                  ,"1,538.50",May-23
EREWASH BOROUGH COUNCIL,23597,Household Waste Collection    ,Tyres                         ,29-Apr-2023,LODGE TYRE COMPANY LTD                  ,"3,436.00",May-23
EREWASH BOROUGH COUNCIL,22748,Household Waste Collection    ,Repairs and Maintenance       ,04-Apr-2023,DENNIS EAGLE LTD                        ,608.94,May-23
EREWASH BOROUGH COUNCIL,22756,Household Waste Collection    ,Repairs and Maintenance       ,11-Apr-2023,EUROMUNICIPAL LTD                       ,317.50,May-23
EREWASH BOROUGH COUNCIL,24084,Household Waste Collection    ,Repairs and Maintenance       ,28-Apr-2023,WILLIAM WEST & SONS (ILKESTON) LIMITED  ,295.00,May-23
EREWASH BOROUGH COUNCIL,22714,Trade Waste                   ,Agency Staff                  ,06-Apr-2023,EXTRA PERSONNEL LTD                     ,601.25,May-23
EREWASH BOROUGH COUNCIL,23825,Trade Waste                   ,Agency Staff                  ,13-Dec-2022,EXTRA PERSONNEL LTD                     ,590.52,May-23
EREWASH BOROUGH COUNCIL,23588,Trade Waste                   ,Agency Staff                  ,28-Apr-2023,EXTRA PERSONNEL LTD                     ,487.50,May-23
EREWASH BOROUGH COUNCIL,22543,Trade Waste                   ,Tyres                         ,31-Mar-2023,LODGE TYRE COMPANY LTD                  ,40.00,May-23
EREWASH BOROUGH COUNCIL,23597,Trade Waste                   ,Tyres                         ,29-Apr-2023,LODGE TYRE COMPANY LTD                  ,408.50,May-23
EREWASH BOROUGH COUNCIL,22715,Kerbside Recycling Collection ,Agency Staff                  ,06-Apr-2023,EXTRA PERSONNEL LTD                     ,"3,883.10",May-23
EREWASH BOROUGH COUNCIL,23824,Kerbside Recycling Collection ,Agency Staff                  ,24-Feb-2023,EXTRA PERSONNEL LTD                     ,"3,238.68",May-23
EREWASH BOROUGH COUNCIL,23591,Kerbside Recycling Collection ,Agency Staff                  ,28-Apr-2023,EXTRA PERSONNEL LTD                     ,"4,248.47",May-23
EREWASH BOROUGH COUNCIL,23148,Kerbside Recycling Collection ,Agency Staff                  ,15-Apr-2023,WORKCHAIN LTD                           ,562.22,May-23
EREWASH BOROUGH COUNCIL,23547,Kerbside Recycling Collection ,Agency Staff                  ,22-Apr-2023,WORKCHAIN LTD                           ,143.00,May-23
EREWASH BOROUGH COUNCIL,22543,Kerbside Recycling Collection ,Tyres                         ,31-Mar-2023,LODGE TYRE COMPANY LTD                  ,418.50,May-23
EREWASH BOROUGH COUNCIL,23597,Kerbside Recycling Collection ,Tyres                         ,29-Apr-2023,LODGE TYRE COMPANY LTD                  ,941.00,May-23
EREWASH BOROUGH COUNCIL,23358,Kerbside Recycling Collection ,Bins                          ,21-Apr-2023,IPL PLASTICS (UK) LIMITED               ,305.00,May-23
EREWASH BOROUGH COUNCIL,23275,Kerbside Recycling Collection ,Repairs and Maintenance       ,19-Apr-2023,DENNIS EAGLE LTD                        ,301.95,May-23
EREWASH BOROUGH COUNCIL,24114,Kerbside Recycling Collection ,Repairs and Maintenance       ,29-Mar-2023,STEELCRAFT FABRICATIONS                 ,360.00,May-23
EREWASH BOROUGH COUNCIL,23887,Kerbside Recycling Collection ,Repairs and Maintenance       ,17-Apr-2023,PARTIC MOTOR SPARES LTD                 ,714.05,May-23
EREWASH BOROUGH COUNCIL,23888,Kerbside Recycling Collection ,Repairs and Maintenance       ,26-Apr-2023,PARTIC MOTOR SPARES LTD                 ,320.00,May-23
EREWASH BOROUGH COUNCIL,23888,Kerbside Recycling Collection ,Repairs and Maintenance       ,26-Apr-2023,PARTIC MOTOR SPARES LTD                 ,371.42,May-23
EREWASH BOROUGH COUNCIL,23531,Infec Disease & Food Poisoning,Contracted Services           ,26-Apr-2023,OYSTER PARTNERSHIP LTD                  ,308.74,May-23
EREWASH BOROUGH COUNCIL,23120,Infec Disease & Food Poisoning,Contracted Services           ,19-Apr-2023,OYSTER PARTNERSHIP LTD                  ,310.58,May-23
EREWASH BOROUGH COUNCIL,22895,Infec Disease & Food Poisoning,Contracted Services           ,12-Apr-2023,OYSTER PARTNERSHIP LTD                  ,312.88,May-23
EREWASH BOROUGH COUNCIL,22670,Infec Disease & Food Poisoning,Contracted Services           ,04-Apr-2023,OYSTER PARTNERSHIP LTD                  ,611.50,May-23
EREWASH BOROUGH COUNCIL,22427,Infec Disease & Food Poisoning,Contracted Services           ,29-Mar-2023,OYSTER PARTNERSHIP LTD                  ,614.72,May-23
EREWASH BOROUGH COUNCIL,23822,Infec Disease & Food Poisoning,Contracted Services           ,03-May-2023,BUCKINGHAM FUTURES LIMITED              ,"1,817.30",May-23
EREWASH BOROUGH COUNCIL,23147,Infec Disease & Food Poisoning,Contracted Services           ,19-Apr-2023,BUCKINGHAM FUTURES LIMITED              ,"1,063.54",May-23
EREWASH BOROUGH COUNCIL,23147,Infec Disease & Food Poisoning,Contracted Services           ,19-Apr-2023,BUCKINGHAM FUTURES LIMITED              ,284.24,May-23
EREWASH BOROUGH COUNCIL,23545,Infec Disease & Food Poisoning,Contracted Services           ,26-Apr-2023,BUCKINGHAM FUTURES LIMITED              ,"1,910.78",May-23
EREWASH BOROUGH COUNCIL,22914,Infec Disease & Food Poisoning,Contracted Services           ,12-Apr-2023,BUCKINGHAM FUTURES LIMITED              ,"1,933.75",May-23
EREWASH BOROUGH COUNCIL,23232,Infec Disease & Food Poisoning,Work In Default               ,19-Apr-2023,AW LYMN LTD                             ,"1,439.00",May-23
EREWASH BOROUGH COUNCIL,23821,Urban Renewal                 ,Agency Staff                  ,03-May-2023,BUCKINGHAM FUTURES LIMITED              ,"1,406.00",May-23
EREWASH BOROUGH COUNCIL,23146,Urban Renewal                 ,Agency Staff                  ,19-Apr-2023,BUCKINGHAM FUTURES LIMITED              ,"1,337.60",May-23
EREWASH BOROUGH COUNCIL,22915,Urban Renewal                 ,Agency Staff                  ,12-Apr-2023,BUCKINGHAM FUTURES LIMITED              ,"1,347.73",May-23
EREWASH BOROUGH COUNCIL,22694,Urban Renewal                 ,Agency Staff                  ,04-Apr-2023,BUCKINGHAM FUTURES LIMITED              ,"1,376.87",May-23
EREWASH BOROUGH COUNCIL,23544,Urban Renewal                 ,Agency Staff                  ,26-Apr-2023,BUCKINGHAM FUTURES LIMITED              ,"1,388.90",May-23
EREWASH BOROUGH COUNCIL,22102,Urban Renewal                 ,Agency Staff                  ,22-Mar-2023,BUCKINGHAM FUTURES LIMITED              ,"1,404.10",May-23
EREWASH BOROUGH COUNCIL,22455,Urban Renewal                 ,Agency Staff                  ,29-Mar-2023,BUCKINGHAM FUTURES LIMITED              ,"1,406.00",May-23
EREWASH BOROUGH COUNCIL,24266,Homelessness                  ,Spend to Save                 ,18-May-2023,TJS PROPERTY PEOPLE                     ,"2,375.00",May-23
EREWASH BOROUGH COUNCIL,23900,Homelessness                  ,Temporary Accommodation       ,08-May-2023,A38 WOODLANDS                           ,406.00,May-23
EREWASH BOROUGH COUNCIL,23137,Homelessness                  ,Temporary Accommodation       ,20-Feb-2023,A38 WOODLANDS                           ,336.00,May-23
EREWASH BOROUGH COUNCIL,22940,Homelessness                  ,Temporary Accommodation       ,17-Apr-2023,A38 WOODLANDS                           ,348.00,May-23
EREWASH BOROUGH COUNCIL,22941,Homelessness                  ,Temporary Accommodation       ,17-Apr-2023,A38 WOODLANDS                           ,406.00,May-23
EREWASH BOROUGH COUNCIL,22953,Homelessness                  ,Temporary Accommodation       ,17-Apr-2023,A38 WOODLANDS                           ,406.00,May-23
EREWASH BOROUGH COUNCIL,23188,Homelessness                  ,Temporary Accommodation       ,24-Apr-2023,A38 WOODLANDS                           ,348.00,May-23
EREWASH BOROUGH COUNCIL,23189,Homelessness                  ,Temporary Accommodation       ,24-Apr-2023,A38 WOODLANDS                           ,406.00,May-23
EREWASH BOROUGH COUNCIL,23190,Homelessness                  ,Temporary Accommodation       ,24-Apr-2023,A38 WOODLANDS                           ,406.00,May-23
EREWASH BOROUGH COUNCIL,23601,Homelessness                  ,Temporary Accommodation       ,01-May-2023,A38 WOODLANDS                           ,406.00,May-23
EREWASH BOROUGH COUNCIL,23602,Homelessness                  ,Temporary Accommodation       ,01-May-2023,A38 WOODLANDS                           ,406.00,May-23
EREWASH BOROUGH COUNCIL,23603,Homelessness                  ,Temporary Accommodation       ,01-May-2023,A38 WOODLANDS                           ,406.00,May-23
EREWASH BOROUGH COUNCIL,23899,Homelessness                  ,Temporary Accommodation       ,08-May-2023,A38 WOODLANDS                           ,406.00,May-23
EREWASH BOROUGH COUNCIL,23901,Homelessness                  ,Temporary Accommodation       ,08-May-2023,A38 WOODLANDS                           ,406.00,May-23
EREWASH BOROUGH COUNCIL,23903,Homelessness                  ,Temporary Accommodation       ,08-May-2023,A38 WOODLANDS                           ,406.00,May-23
EREWASH BOROUGH COUNCIL,23914,Homelessness                  ,Leased Properties             ,01-May-2023,EMH HOMES                               ,"1,142.62",May-23
EREWASH BOROUGH COUNCIL,23916,Homelessness                  ,Leased Properties             ,01-May-2023,EMH HOMES                               ,"1,170.53",May-23
EREWASH BOROUGH COUNCIL,23915,Homelessness                  ,Leased Properties             ,01-May-2023,EMH HOMES                               ,"1,240.06",May-23
EREWASH BOROUGH COUNCIL,21410,Homelessness                  ,Leased Properties             ,01-Mar-2023,EMH HOMES                               ,967.62,May-23
EREWASH BOROUGH COUNCIL,21412,Homelessness                  ,Leased Properties             ,01-Mar-2023,EMH HOMES                               ,"1,059.74",May-23
EREWASH BOROUGH COUNCIL,23159,Homelessness                  ,Leased Properties             ,01-Apr-2023,EMH HOMES                               ,"1,171.89",May-23
EREWASH BOROUGH COUNCIL,23807,Homelessness                  ,Leased Properties             ,24-Apr-2023,EMH HOMES                               ,"1,477.32",May-23
EREWASH BOROUGH COUNCIL,23318,Homelessness                  ,Fees Costs and Expenses       ,19-Apr-2023,OCEAN MEDIA GROUP LTD                   ,575.00,May-23
EREWASH BOROUGH COUNCIL,21254,Homelessness                  ,Fees Costs and Expenses       ,30-Dec-2022,YMCA DERBYSHIRE                         ,"1,053.97",May-23
EREWASH BOROUGH COUNCIL,24105,Community Consultation and Inv,Surveys and Housing Check Fees,30-Apr-2023,SNAP SURVEYS LIMITED                    ,"1,845.00",May-23
EREWASH BOROUGH COUNCIL,25230,Community Consultation and Inv,Surveys and Housing Check Fees,26-May-2023,SNAP SURVEYS LIMITED                    ,"1,465.00",May-23
EREWASH BOROUGH COUNCIL,22976,Community Grants              ,Health Improvement Fund       ,17-Apr-2023,EREWASH VOLUNTARY ACTION                ,"3,000.00",May-23
EREWASH BOROUGH COUNCIL,23615,Front Line Support Services   ,Security                      ,30-Apr-2023,KINGS ARMOURED SECURITY SERVICES        ,428.50,May-23
EREWASH BOROUGH COUNCIL,24295,Treasury and Bank Charges     ,Bank Charges                  ,12-May-2023,LLOYDS BANK PLC                         ,819.03,May-23
EREWASH BOROUGH COUNCIL,24076,Treasury and Bank Charges     ,Allpay/Post Office Charges    ,12-May-2023,PAY 360 LIMITED (CAPITA)                ,"5,276.95",May-23
EREWASH BOROUGH COUNCIL,24706,Treasury and Bank Charges     ,Allpay/Post Office Charges    ,31-May-2023,ALLPAY LIMITED                          ,826.56,May-23
EREWASH BOROUGH COUNCIL,23628,Accountancy                   ,Agency Staff                  ,16-Apr-2023,MACILDOWIE RECRUITMENT EXPERTISE        ,937.86,May-23
EREWASH BOROUGH COUNCIL,23325,Accountancy                   ,Agency Staff                  ,23-Apr-2023,MACILDOWIE RECRUITMENT EXPERTISE        ,"1,266.88",May-23
EREWASH BOROUGH COUNCIL,24143,Accountancy                   ,Agency Staff                  ,14-May-2023,MACILDOWIE RECRUITMENT EXPERTISE        ,958.72,May-23
EREWASH BOROUGH COUNCIL,23663,Accountancy                   ,Agency Staff                  ,30-Apr-2023,MACILDOWIE RECRUITMENT EXPERTISE        ,789.40,May-23
EREWASH BOROUGH COUNCIL,24025,Accountancy                   ,Agency Staff                  ,07-May-2023,MACILDOWIE RECRUITMENT EXPERTISE        ,"1,027.20",May-23
EREWASH BOROUGH COUNCIL,22696,Revenues and Benefits         ,Postages                      ,05-Apr-2023,ROYAL MAIL GROUP LTD.                   ,395.00,May-23
EREWASH BOROUGH COUNCIL,22674,Revenues and Benefits         ,Postages                      ,05-Apr-2023,ROYAL MAIL GROUP LTD.                   ,891.08,May-23
EREWASH BOROUGH COUNCIL,22776,Revenues and Benefits         ,Postages                      ,12-Apr-2023,ROYAL MAIL GROUP LTD.                   ,536.96,May-23
EREWASH BOROUGH COUNCIL,23347,Revenues and Benefits         ,Postages                      ,26-Apr-2023,ROYAL MAIL GROUP LTD.                   ,"1,075.36",May-23
EREWASH BOROUGH COUNCIL,23126,Revenues and Benefits         ,Postages                      ,19-Apr-2023,ROYAL MAIL GROUP LTD.                   ,719.76,May-23
EREWASH BOROUGH COUNCIL,24086,Revenues and Benefits         ,Postages                      ,30-Apr-2023,TELSOLUTIONS LTD                        ,300.00,May-23
EREWASH BOROUGH COUNCIL,22977,Housing Benefit Administration,Computer Software             ,17-Apr-2023,CIVICA UK LIMITED                       ,"17,100.00",May-23
EREWASH BOROUGH COUNCIL,23671,Housing Benefit Administration,Computer Software             ,25-Apr-2023,CIVICA UK LIMITED                       ,"5,700.00",May-23
EREWASH BOROUGH COUNCIL,22543,Ilkeston Admin and Courier    ,Tyres                         ,31-Mar-2023,LODGE TYRE COMPANY LTD                  ,62.70,May-23
EREWASH BOROUGH COUNCIL,23307,Internal Audit                ,Consultants Fees              ,24-Apr-2023,BDO                                     ,"4,200.00",May-23
EREWASH BOROUGH COUNCIL,23301,ICT Support Services          ,General Equipment             ,19-Apr-2023,ANTALIS DOCUMENT SUPPLIES               ,475.28,May-23
EREWASH BOROUGH COUNCIL,23328,ICT Support Services          ,General Equipment             ,20-Apr-2023,ANTALIS DOCUMENT SUPPLIES               ,475.28,May-23
EREWASH BOROUGH COUNCIL,23244,ICT Support Services          ,General Equipment             ,17-Apr-2023,CCS MEDIA LIMITED                       ,333.10,May-23
EREWASH BOROUGH COUNCIL,23255,ICT Support Services          ,Equipment Leasing Charge      ,24-Apr-2023,ANNODATA LIMITED                        ,"2,559.98",May-23
EREWASH BOROUGH COUNCIL,23863,ICT Support Services          ,Software Licences             ,28-Apr-2023,PHOENIX SOFTWARE LTD                    ,"8,198.40",May-23
EREWASH BOROUGH COUNCIL,23863,ICT Support Services          ,Software Licences             ,28-Apr-2023,PHOENIX SOFTWARE LTD                    ,"3,038.28",May-23
EREWASH BOROUGH COUNCIL,23863,ICT Support Services          ,Software Licences             ,28-Apr-2023,PHOENIX SOFTWARE LTD                    ,"9,396.75",May-23
EREWASH BOROUGH COUNCIL,23849,ICT Support Services          ,Software Licences             ,28-Apr-2023,PHOENIX SOFTWARE LTD                    ,"46,981.87",May-23
EREWASH BOROUGH COUNCIL,23849,ICT Support Services          ,Software Licences             ,28-Apr-2023,PHOENIX SOFTWARE LTD                    ,"12,036.50",May-23
EREWASH BOROUGH COUNCIL,23849,ICT Support Services          ,Software Licences             ,28-Apr-2023,PHOENIX SOFTWARE LTD                    ,505.05,May-23
EREWASH BOROUGH COUNCIL,23849,ICT Support Services          ,Software Licences             ,28-Apr-2023,PHOENIX SOFTWARE LTD                    ,"5,699.65",May-23
EREWASH BOROUGH COUNCIL,23849,ICT Support Services          ,Software Licences             ,28-Apr-2023,PHOENIX SOFTWARE LTD                    ,"9,584.94",May-23
EREWASH BOROUGH COUNCIL,23849,ICT Support Services          ,Software Licences             ,28-Apr-2023,PHOENIX SOFTWARE LTD                    ,606.06,May-23
EREWASH BOROUGH COUNCIL,23346,ICT Support Services          ,Data Lines                    ,26-Apr-2023,ZEN INTERNET LIMITED                    ,"1,367.01",May-23
EREWASH BOROUGH COUNCIL,22705,ICT Support Services          ,Data Lines                    ,05-Apr-2023,AXESS SYSTEMS LTD                       ,564.00,May-23
EREWASH BOROUGH COUNCIL,22775,ICT Support Services          ,Mobile Phones                 ,11-Apr-2023,CLASS AFFINITY PROJECTS LTD             ,"1,829.19",May-23
EREWASH BOROUGH COUNCIL,23939,ICT Support Services          ,Mobile Phones                 ,09-May-2023,CLASS AFFINITY PROJECTS LTD             ,"2,391.27",May-23
EREWASH BOROUGH COUNCIL,23246,ICT Support Services          ,Security                      ,13-Apr-2023,SOFTCAT LTD                             ,"2,400.00",May-23
EREWASH BOROUGH COUNCIL,23330,Occupational Health & Welfare ,Occupational Health Service   ,04-Apr-2023,MEDIGOLD HEALTH CONSULTANCY LIMITED     ,965.00,May-23
EREWASH BOROUGH COUNCIL,24365,Development Control           ,Planning Fees                 ,22-May-2023,PORTALPLANQUEST LTD                     ,"3,696.00",May-23
EREWASH BOROUGH COUNCIL,24038,Development Control           ,Planning Fees                 ,10-May-2023,PORTALPLANQUEST LTD                     ,"12,012.00",May-23
EREWASH BOROUGH COUNCIL,20500,Development Control           ,Agency Staff                  ,27-Jan-2023,EXTRA PERSONNEL LTD                     ,319.20,May-23
EREWASH BOROUGH COUNCIL,23691,Development Control           ,Consultants Fees              ,30-Apr-2023,IDOM MEREBROOK LTD                      ,330.00,May-23
EREWASH BOROUGH COUNCIL,24092,Development Control           ,Consultants Fees              ,30-Apr-2023,TERRAQUEST DATA SOLUTIONS               ,585.80,May-23
EREWASH BOROUGH COUNCIL,24091,Development Control           ,Consultants Fees              ,30-Apr-2023,TERRAQUEST DATA SOLUTIONS               ,"9,322.70",May-23
EREWASH BOROUGH COUNCIL,23592,Development Control           ,Consultants Fees              ,28-Apr-2023,EXTRA PERSONNEL LTD                     ,590.52,May-23
EREWASH BOROUGH COUNCIL,22149,Development Control           ,Consultants Fees              ,24-Mar-2023,EXTRA PERSONNEL LTD                     ,255.36,May-23
EREWASH BOROUGH COUNCIL,22944,Development Control           ,Consultants Fees              ,14-Apr-2023,EXTRA PERSONNEL LTD                     ,359.10,May-23
EREWASH BOROUGH COUNCIL,19976,Development Control           ,Consultants Fees              ,13-Jan-2023,EXTRA PERSONNEL LTD                     ,472.42,May-23
EREWASH BOROUGH COUNCIL,22526,Development Control           ,Consultants Fees              ,31-Mar-2023,EXTRA PERSONNEL LTD                     ,478.80,May-23
EREWASH BOROUGH COUNCIL,22717,Development Control           ,Consultants Fees              ,06-Apr-2023,EXTRA PERSONNEL LTD                     ,558.60,May-23
EREWASH BOROUGH COUNCIL,22148,Development Control           ,Consultants Fees              ,24-Mar-2023,EXTRA PERSONNEL LTD                     ,590.52,May-23
EREWASH BOROUGH COUNCIL,24099,Planning Policy               ,Consultants Fees              ,24-Apr-2023,PLANNINGJOBS.COM                        ,495.00,May-23
EREWASH BOROUGH COUNCIL,23555,Economic Development          ,Contracted Services           ,01-Feb-2023,PROXIMITY FUTURES T/A ELEPHANT WIFI     ,303.33,May-23
EREWASH BOROUGH COUNCIL,23688,Economic Development          ,Project Grants                ,27-Apr-2023,INSIDE OUT GROUP (EUROPE) LTD           ,300.00,May-23
EREWASH BOROUGH COUNCIL,22942,Building Control - Fee Earning,Agency Staff                  ,07-Apr-2023,REED SPECIALIST RECRUITMENT LTD         ,829.17,May-23
EREWASH BOROUGH COUNCIL,23896,Building Control - Fee Earning,Agency Staff                  ,28-Apr-2023,REED SPECIALIST RECRUITMENT LTD         ,792.19,May-23
EREWASH BOROUGH COUNCIL,23595,Building Control - Fee Earning,Agency Staff                  ,21-Apr-2023,REED SPECIALIST RECRUITMENT LTD         ,823.57,May-23
EREWASH BOROUGH COUNCIL,22703,Building Control - Fee Earning,Agency Staff                  ,05-Apr-2023,MATCHTECH GROUP (UK) LIMITED            ,825.00,May-23
EREWASH BOROUGH COUNCIL,23541,Building Control - Fee Earning,Agency Staff                  ,27-Apr-2023,MATCHTECH GROUP (UK) LIMITED            ,825.00,May-23
EREWASH BOROUGH COUNCIL,23542,Building Control - Fee Earning,Agency Staff                  ,27-Apr-2023,MATCHTECH GROUP (UK) LIMITED            ,"2,461.25",May-23
EREWASH BOROUGH COUNCIL,23130,Building Control - Fee Earning,Agency Staff                  ,19-Apr-2023,MATCHTECH GROUP (UK) LIMITED            ,412.50,May-23
EREWASH BOROUGH COUNCIL,23134,Building Control - Fee Earning,Agency Staff                  ,19-Apr-2023,MATCHTECH GROUP (UK) LIMITED            ,825.00,May-23
EREWASH BOROUGH COUNCIL,23131,Building Control - Fee Earning,Agency Staff                  ,19-Apr-2023,MATCHTECH GROUP (UK) LIMITED            ,"1,650.00",May-23
EREWASH BOROUGH COUNCIL,23135,Building Control - Fee Earning,Agency Staff                  ,19-Apr-2023,MATCHTECH GROUP (UK) LIMITED            ,"1,650.00",May-23
EREWASH BOROUGH COUNCIL,23332,Registration of Electors      ,Software Licences             ,24-Apr-2023,IDOX SOFTWARE LIMITED                   ,"15,329.20",May-23
EREWASH BOROUGH COUNCIL,23581,Elections                     ,General Equipment             ,28-Apr-2023,ILKESTON CHURCH OF THE NAZARENE         ,400.00,May-23
EREWASH BOROUGH COUNCIL,23626,Elections                     ,General Equipment             ,01-May-2023,ROYAL MAIL GROUP LTD.                   ,567.62,May-23
EREWASH BOROUGH COUNCIL,23284,Elections                     ,General Equipment             ,25-Apr-2023,ROYAL MAIL GROUP LTD.                   ,"4,024.56",May-23
EREWASH BOROUGH COUNCIL,23127,Elections                     ,General Equipment             ,19-Apr-2023,ROYAL MAIL GROUP LTD.                   ,"11,881.61",May-23
EREWASH BOROUGH COUNCIL,23647,Elections                     ,General Equipment             ,02-May-2023,SANDIACRE TOWN CRICKET & SOCIAL CLUB    ,350.00,May-23
EREWASH BOROUGH COUNCIL,23648,Elections                     ,General Equipment             ,02-May-2023,SAWLEY COMMUNITY ASSOCIATION            ,475.00,May-23
EREWASH BOROUGH COUNCIL,23553,Elections                     ,General Equipment             ,28-Apr-2023,SCI PRINT LTD                           ,453.91,May-23
EREWASH BOROUGH COUNCIL,23608,Elections                     ,General Equipment             ,28-Apr-2023,SCI PRINT LTD                           ,"4,836.60",May-23
EREWASH BOROUGH COUNCIL,23607,Elections                     ,General Equipment             ,28-Apr-2023,SCI PRINT LTD                           ,"9,636.45",May-23
EREWASH BOROUGH COUNCIL,23571,Elections                     ,General Equipment             ,28-Apr-2023,DALLIMORE PRIMARY SCHOOL                ,288.13,May-23
EREWASH BOROUGH COUNCIL,23574,Elections                     ,General Equipment             ,28-Apr-2023,ELIM CHRISTIAN CENTRE                   ,396.00,May-23
EREWASH BOROUGH COUNCIL,23575,Elections                     ,General Equipment             ,28-Apr-2023,EREWASH INDOOR BOWLING CLUB             ,500.00,May-23
EREWASH BOROUGH COUNCIL,23576,Elections                     ,General Equipment             ,28-Apr-2023,EREWASH VALLEY GYMNASTICS CLUB          ,400.00,May-23
EREWASH BOROUGH COUNCIL,23577,Elections                     ,General Equipment             ,28-Apr-2023,EREWASH VALLEY GYMNASTICS CLUB          ,400.00,May-23
EREWASH BOROUGH COUNCIL,23655,Elections                     ,General Equipment             ,02-May-2023,TREFOIL HOUSE MANAGEMENT COMMITTEE      ,450.00,May-23
EREWASH BOROUGH COUNCIL,23953,Elections                     ,General Equipment             ,06-May-2023,TRENT MARQUEES                          ,"1,080.00",May-23
EREWASH BOROUGH COUNCIL,23656,Elections                     ,General Equipment             ,02-May-2023,TRINITY METHODIST CHURCH                ,350.00,May-23
EREWASH BOROUGH COUNCIL,23587,Elections                     ,General Equipment             ,28-Apr-2023,OASIS CHRISTIAN  CENTRE                 ,440.00,May-23
EREWASH BOROUGH COUNCIL,23638,Elections                     ,General Equipment             ,02-May-2023,OCKBROOK AND BORROWASH PARISH COUNCIL   ,266.27,May-23
EREWASH BOROUGH COUNCIL,23639,Elections                     ,General Equipment             ,02-May-2023,OCKBROOK AND BORROWASH PARISH COUNCIL   ,266.27,May-23
EREWASH BOROUGH COUNCIL,23001,Elections                     ,General Equipment             ,17-Apr-2023,BE EVENT HIRE                           ,"1,227.50",May-23
EREWASH BOROUGH COUNCIL,23564,Elections                     ,General Equipment             ,28-Apr-2023,BORROWASH METHODIST CHURCH              ,400.00,May-23
EREWASH BOROUGH COUNCIL,23567,Elections                     ,General Equipment             ,28-Apr-2023,BREASTON METHODIST CHURCH               ,330.00,May-23
EREWASH BOROUGH COUNCIL,23578,Elections                     ,General Equipment             ,28-Apr-2023,EVENTIDE COMMUNITY HALL.                ,350.00,May-23
EREWASH BOROUGH COUNCIL,23580,Elections                     ,General Equipment             ,28-Apr-2023,GATEWAY CENTRE                          ,350.00,May-23
EREWASH BOROUGH COUNCIL,23658,Elections                     ,General Equipment             ,02-May-2023,WEST HALLAM METHODIST CHURCH            ,400.00,May-23
EREWASH BOROUGH COUNCIL,23649,Elections                     ,General Equipment             ,02-May-2023,ST ANDREWS  METHODIST CHURCH            ,260.00,May-23
EREWASH BOROUGH COUNCIL,23651,Elections                     ,General Equipment             ,02-May-2023,ST LAURENCE C OF E PRIMARY SCHOOL       ,320.00,May-23
EREWASH BOROUGH COUNCIL,23641,Elections                     ,General Equipment             ,02-May-2023,PARKSIDE HIGH CIC                       ,350.00,May-23
EREWASH BOROUGH COUNCIL,23642,Elections                     ,General Equipment             ,02-May-2023,PETERSHAM HALL COMMUNITY ASSOCIATION    ,500.00,May-23
EREWASH BOROUGH COUNCIL,23559,Elections                     ,General Equipment             ,28-Apr-2023,1ST DRAYCOTT  & WILNE SCOUT GROUP       ,500.00,May-23
EREWASH BOROUGH COUNCIL,23560,Elections                     ,General Equipment             ,28-Apr-2023,ALL SAINTS CHURCH HALL SAWLEY           ,300.00,May-23
EREWASH BOROUGH COUNCIL,23562,Elections                     ,General Equipment             ,28-Apr-2023,ARENA CHURCH                            ,300.00,May-23
EREWASH BOROUGH COUNCIL,23584,Elections                     ,General Equipment             ,28-Apr-2023,LEGACY LEISURE LTD                      ,407.50,May-23
EREWASH BOROUGH COUNCIL,23585,Elections                     ,General Equipment             ,28-Apr-2023,LITTLE EATON VILLAGE HALL               ,285.00,May-23
EREWASH BOROUGH COUNCIL,23570,Elections                     ,General Equipment             ,28-Apr-2023,CHRIST CHURCH COTMANHAY & SHIPLEY       ,375.00,May-23
EREWASH BOROUGH COUNCIL,23829,Legal Services                ,Reference Literature and Publi,27-Apr-2023,LEXISNEXIS BUTTERWORTHS                 ,621.00,May-23
EREWASH BOROUGH COUNCIL,23838,Civic Transport               ,Hire Charges                  ,30-Apr-2023,PINNACLE EXECUTIVE CARS LIMITED         ,"1,961.95",May-23
EREWASH BOROUGH COUNCIL,24406,Civic Duties Hospitality      ,Annual Civic Dinner           ,24-May-2023,MAYOR'S CHARITY ACCOUNT                 ,485.40,May-23
EREWASH BOROUGH COUNCIL,22794,Democratic Representation     ,Conference Fees/Seminars      ,12-Apr-2023,LOCAL GOVERNMENT ASSOCIATION            ,"2,023.60",May-23
EREWASH BOROUGH COUNCIL,22718,Green Space                   ,Agency Staff                  ,06-Apr-2023,EXTRA PERSONNEL LTD                     ,"2,717.17",May-23
EREWASH BOROUGH COUNCIL,22719,Green Space                   ,Agency Staff                  ,06-Apr-2023,EXTRA PERSONNEL LTD                     ,"3,018.01",May-23
EREWASH BOROUGH COUNCIL,23826,Green Space                   ,Agency Staff                  ,10-Mar-2023,EXTRA PERSONNEL LTD                     ,"2,138.44",May-23
EREWASH BOROUGH COUNCIL,22946,Green Space                   ,Agency Staff                  ,14-Apr-2023,EXTRA PERSONNEL LTD                     ,"2,191.57",May-23
EREWASH BOROUGH COUNCIL,22943,Green Space                   ,Agency Staff                  ,14-Apr-2023,EXTRA PERSONNEL LTD                     ,"3,402.98",May-23
EREWASH BOROUGH COUNCIL,23589,Green Space                   ,Agency Staff                  ,28-Apr-2023,EXTRA PERSONNEL LTD                     ,"2,830.78",May-23
EREWASH BOROUGH COUNCIL,23593,Green Space                   ,Agency Staff                  ,28-Apr-2023,EXTRA PERSONNEL LTD                     ,"3,669.52",May-23
EREWASH BOROUGH COUNCIL,22896,Green Space                   ,Agency Staff                  ,12-Apr-2023,EXTRA PERSONNEL LTD                     ,278.98,May-23
EREWASH BOROUGH COUNCIL,23830,Green Space                   ,Agency Staff                  ,29-Apr-2023,WORKCHAIN LTD                           ,184.25,May-23
EREWASH BOROUGH COUNCIL,24135,Green Space                   ,Training                      ,16-May-2023,ROAD HAULAGE ASSOCIATION                ,675.00,May-23
EREWASH BOROUGH COUNCIL,24136,Green Space                   ,Training                      ,16-May-2023,ROAD HAULAGE ASSOCIATION                ,75.00,May-23
EREWASH BOROUGH COUNCIL,22975,Green Space                   ,Training                      ,05-Apr-2023,ENVIROTRAIN TRAINING                    ,"1,099.00",May-23
EREWASH BOROUGH COUNCIL,23142,Green Space                   ,Electricity                   ,19-Apr-2023,TOTALENERGIES GAS & POWER LTD           ,"2,381.59",May-23
EREWASH BOROUGH COUNCIL,23143,Green Space                   ,Electricity                   ,20-Apr-2023,TOTALENERGIES GAS & POWER LTD           ,"4,035.69",May-23
EREWASH BOROUGH COUNCIL,23143,Green Space                   ,Electricity                   ,20-Apr-2023,TOTALENERGIES GAS & POWER LTD           ,714.95,May-23
EREWASH BOROUGH COUNCIL,23144,Green Space                   ,Gas                           ,20-Apr-2023,TOTALENERGIES GAS & POWER LTD           ,398.69,May-23
EREWASH BOROUGH COUNCIL,23144,Green Space                   ,Gas                           ,20-Apr-2023,TOTALENERGIES GAS & POWER LTD           ,331.77,May-23
EREWASH BOROUGH COUNCIL,24079,Green Space                   ,Metered Water                 ,01-May-2023,SCOTTISH WATER BUSINESS STREAM LIMITED  ,"1,251.46",May-23
EREWASH BOROUGH COUNCIL,22543,Green Space                   ,Tyres                         ,31-Mar-2023,LODGE TYRE COMPANY LTD                  ,545.30,May-23
EREWASH BOROUGH COUNCIL,23597,Green Space                   ,Tyres                         ,29-Apr-2023,LODGE TYRE COMPANY LTD                  ,806.00,May-23
EREWASH BOROUGH COUNCIL,23295,Green Space                   ,Materials and Consumables     ,12-Apr-2023,SCOTT TRAILERS                          ,"3,427.00",May-23
EREWASH BOROUGH COUNCIL,23934,Green Space                   ,Materials and Consumables     ,03-Nov-2022,EREWASH PARTNERSHIP LTD                 ,"1,647.36",May-23
EREWASH BOROUGH COUNCIL,22955,Green Space                   ,Materials and Consumables     ,17-Apr-2023,THE RADAR KEY COMPANY                   ,265.00,May-23
EREWASH BOROUGH COUNCIL,22761,Green Space                   ,Materials and Consumables     ,05-Apr-2023,TUDOR ENVIRONMENTAL                     ,310.30,May-23
EREWASH BOROUGH COUNCIL,22903,Green Space                   ,Materials and Consumables     ,12-Apr-2023,TUDOR ENVIRONMENTAL                     ,286.90,May-23
EREWASH BOROUGH COUNCIL,23283,Green Space                   ,Materials and Consumables     ,24-Apr-2023,TUDOR ENVIRONMENTAL                     ,526.80,May-23
EREWASH BOROUGH COUNCIL,23304,Green Space                   ,Materials and Consumables     ,21-Apr-2023,ORIGIN AMENITY SOLUTIONS                ,"1,220.00",May-23
EREWASH BOROUGH COUNCIL,23303,Green Space                   ,Materials and Consumables     ,21-Apr-2023,ORIGIN AMENITY SOLUTIONS                ,675.60,May-23
EREWASH BOROUGH COUNCIL,23303,Green Space                   ,Materials and Consumables     ,21-Apr-2023,ORIGIN AMENITY SOLUTIONS                ,"1,107.30",May-23
EREWASH BOROUGH COUNCIL,22787,Green Space                   ,Materials and Consumables     ,05-Apr-2023,BANNER GROUP LIMITED                    ,641.53,May-23
EREWASH BOROUGH COUNCIL,23548,Green Space                   ,Materials and Consumables     ,23-Apr-2023,GO TRAFFIC MANAGEMENT                   ,"1,039.50",May-23
EREWASH BOROUGH COUNCIL,23272,Green Space                   ,Materials and Consumables     ,18-Apr-2023,GROUNDSMAN TOOLS AND SUPPLIES LLP       ,676.55,May-23
EREWASH BOROUGH COUNCIL,22768,Green Space                   ,Materials and Consumables     ,05-Apr-2023,VITAX LTD                               ,544.00,May-23
EREWASH BOROUGH COUNCIL,23277,Green Space                   ,Materials and Consumables     ,17-Apr-2023,PENTLAND PLANTS LTD                     ,"2,270.77",May-23
EREWASH BOROUGH COUNCIL,22908,Green Space                   ,Materials and Consumables     ,10-Apr-2023,PENTLAND PLANTS LTD                     ,817.35,May-23
EREWASH BOROUGH COUNCIL,23812,Green Space                   ,Materials and Consumables     ,24-Apr-2023,PENTLAND PLANTS LTD                     ,"1,494.09",May-23
EREWASH BOROUGH COUNCIL,22920,Green Space                   ,Materials and Consumables     ,12-Apr-2023,PROTECTIVE WEAR SUPPLIES LTD            ,404.14,May-23
EREWASH BOROUGH COUNCIL,22701,Green Space                   ,Materials and Consumables     ,04-Apr-2023,PROTECTIVE WEAR SUPPLIES LTD            ,390.64,May-23
EREWASH BOROUGH COUNCIL,23550,Green Space                   ,Materials and Consumables     ,26-Apr-2023,PROTECTIVE WEAR SUPPLIES LTD            ,254.80,May-23
EREWASH BOROUGH COUNCIL,22760,Green Space                   ,Materials and Consumables     ,05-Apr-2023,CROMWELL POLYTHENE LTD                  ,"2,188.80",May-23
EREWASH BOROUGH COUNCIL,24339,Green Space                   ,Contracted Services           ,17-May-2023,ENFORCEMENT BAILIFFS LTD T/A QUALITY BAL,700.00,May-23
EREWASH BOROUGH COUNCIL,23345,Green Space                   ,Contracted Services           ,25-Apr-2023,T H HEATH  CONTRACTS  LTD               ,"1,720.00",May-23
EREWASH BOROUGH COUNCIL,23344,Green Space                   ,Contracted Services           ,25-Apr-2023,T H HEATH  CONTRACTS  LTD               ,"5,186.17",May-23
EREWASH BOROUGH COUNCIL,23873,Green Space                   ,Repairs and Maintenance       ,30-Apr-2023,RUSSELLS (KIRBYMOORSIDE) LIMITED        ,425.00,May-23
EREWASH BOROUGH COUNCIL,23886,Green Space                   ,Repairs and Maintenance       ,04-Apr-2023,PARTIC MOTOR SPARES LTD                 ,714.05,May-23
EREWASH BOROUGH COUNCIL,23361,Green Space                   ,Repairs and Maintenance       ,27-Mar-2023,ALFA TAIL LIFTS LTD                     ,566.22,May-23
EREWASH BOROUGH COUNCIL,23952,Green Space                   ,Reactive Maintenance          ,26-Apr-2023,LEISURE LITES LIMTED                    ,"4,270.00",May-23
EREWASH BOROUGH COUNCIL,24270,Trees Hedges Local Nature Res ,Contracted Services           ,23-Feb-2023,TOM RICHARDS TREE SERVICES              ,400.00,May-23
EREWASH BOROUGH COUNCIL,24272,Trees Hedges Local Nature Res ,Contracted Services           ,27-Feb-2023,TOM RICHARDS TREE SERVICES              ,400.00,May-23
EREWASH BOROUGH COUNCIL,24271,Trees Hedges Local Nature Res ,Contracted Services           ,30-Mar-2023,TOM RICHARDS TREE SERVICES              ,"4,030.00",May-23
EREWASH BOROUGH COUNCIL,24269,Trees Hedges Local Nature Res ,Contracted Services           ,13-Feb-2023,TOM RICHARDS TREE SERVICES              ,"6,440.00",May-23
EREWASH BOROUGH COUNCIL,23288,Play Areas                    ,Materials and Consumables     ,18-Apr-2023,WICKSTEED LEISURE LTD                   ,397.67,May-23
EREWASH BOROUGH COUNCIL,23143,Cemeteries                    ,Electricity                   ,20-Apr-2023,TOTALENERGIES GAS & POWER LTD           ,432.31,May-23
EREWASH BOROUGH COUNCIL,22719,Public Conveniences           ,Agency Staff                  ,06-Apr-2023,EXTRA PERSONNEL LTD                     ,500.00,May-23
EREWASH BOROUGH COUNCIL,22943,Public Conveniences           ,Agency Staff                  ,14-Apr-2023,EXTRA PERSONNEL LTD                     ,500.00,May-23
EREWASH BOROUGH COUNCIL,23593,Public Conveniences           ,Agency Staff                  ,28-Apr-2023,EXTRA PERSONNEL LTD                     ,500.00,May-23
EREWASH BOROUGH COUNCIL,23143,Public Conveniences           ,Electricity                   ,20-Apr-2023,TOTALENERGIES GAS & POWER LTD           ,610.94,May-23
EREWASH BOROUGH COUNCIL,24079,Public Conveniences           ,Metered Water                 ,01-May-2023,SCOTTISH WATER BUSINESS STREAM LIMITED  ,"5,227.48",May-23
EREWASH BOROUGH COUNCIL,23855,Watercourse Maintenance       ,Contracted Services           ,28-Apr-2023,ALLIANCE CONTRACTING SOLUTIONS LTD      ,589.79,May-23
EREWASH BOROUGH COUNCIL,22718,Street Scene                  ,Agency Staff                  ,06-Apr-2023,EXTRA PERSONNEL LTD                     ,"2,717.16",May-23
EREWASH BOROUGH COUNCIL,22719,Street Scene                  ,Agency Staff                  ,06-Apr-2023,EXTRA PERSONNEL LTD                     ,"3,018.01",May-23
EREWASH BOROUGH COUNCIL,23826,Street Scene                  ,Agency Staff                  ,10-Mar-2023,EXTRA PERSONNEL LTD                     ,"2,138.43",May-23
EREWASH BOROUGH COUNCIL,22946,Street Scene                  ,Agency Staff                  ,14-Apr-2023,EXTRA PERSONNEL LTD                     ,"2,191.56",May-23
EREWASH BOROUGH COUNCIL,22943,Street Scene                  ,Agency Staff                  ,14-Apr-2023,EXTRA PERSONNEL LTD                     ,"3,402.99",May-23
EREWASH BOROUGH COUNCIL,23589,Street Scene                  ,Agency Staff                  ,28-Apr-2023,EXTRA PERSONNEL LTD                     ,"2,830.77",May-23
EREWASH BOROUGH COUNCIL,23593,Street Scene                  ,Agency Staff                  ,28-Apr-2023,EXTRA PERSONNEL LTD                     ,"3,669.52",May-23
EREWASH BOROUGH COUNCIL,22896,Street Scene                  ,Agency Staff                  ,12-Apr-2023,EXTRA PERSONNEL LTD                     ,278.98,May-23
EREWASH BOROUGH COUNCIL,23830,Street Scene                  ,Agency Staff                  ,29-Apr-2023,WORKCHAIN LTD                           ,184.25,May-23
EREWASH BOROUGH COUNCIL,23661,Street Scene                  ,Training                      ,30-Apr-2023,WAYNE PEAPELL CONSULTANCY LTD           ,"1,425.00",May-23
EREWASH BOROUGH COUNCIL,22543,Street Scene                  ,Tyres                         ,31-Mar-2023,LODGE TYRE COMPANY LTD                  ,202.70,May-23
EREWASH BOROUGH COUNCIL,23597,Street Scene                  ,Tyres                         ,29-Apr-2023,LODGE TYRE COMPANY LTD                  ,323.20,May-23
EREWASH BOROUGH COUNCIL,23251,Street Scene                  ,Vehicle Sweeper Brushes       ,19-Apr-2023,AEBI SCHMIDT UK LTD                     ,746.57,May-23
EREWASH BOROUGH COUNCIL,23324,Street Scene                  ,Bins                          ,25-Apr-2023,BROXAP LIMITED                          ,"1,725.00",May-23
EREWASH BOROUGH COUNCIL,23597,Dog Control                   ,Tyres                         ,29-Apr-2023,LODGE TYRE COMPANY LTD                  ,15.00,May-23
EREWASH BOROUGH COUNCIL,23306,Dog Control                   ,Kennelling Costs              ,21-Apr-2023,BROOKFIELD FARM KENNELS & CATTERY       ,270.00,May-23
EREWASH BOROUGH COUNCIL,23935,Dog Control                   ,Kennelling Costs              ,30-Apr-2023,CROWFOOT KENNELS LTD                    ,497.96,May-23
EREWASH BOROUGH COUNCIL,23597,Neighbourhood Wardens         ,Tyres                         ,29-Apr-2023,LODGE TYRE COMPANY LTD                  ,101.20,May-23
EREWASH BOROUGH COUNCIL,22747,Neighbourhood Wardens         ,Materials and Consumables     ,04-Apr-2023,EREWASH PARTNERSHIP LTD                 ,320.32,May-23
EREWASH BOROUGH COUNCIL,23143,CCTV - Ilkeston and Long Eaton,Electricity                   ,20-Apr-2023,TOTALENERGIES GAS & POWER LTD           ,776.86,May-23
EREWASH BOROUGH COUNCIL,23122,CCTV - Ilkeston and Long Eaton,Contracted Services           ,13-Apr-2023,SYNECTICS SECURITY LIMITED              ,"3,075.75",May-23
EREWASH BOROUGH COUNCIL,23313,Car Parking                   ,Reactive Maintenance          ,23-Apr-2023,ATG ACCESS LTD                          ,675.39,May-23
EREWASH BOROUGH COUNCIL,23143,Car Parking                   ,Electricity                   ,20-Apr-2023,TOTALENERGIES GAS & POWER LTD           ,"1,628.03",May-23
EREWASH BOROUGH COUNCIL,22793,Car Parking                   ,Contracted Services           ,10-Apr-2023,INTERNATIONAL PARKING SYSTEMS UK LTD    ,"10,150.00",May-23
EREWASH BOROUGH COUNCIL,23617,Car Parking                   ,Contracted Services           ,30-Apr-2023,KINGS ARMOURED SECURITY SERVICES        ,"1,238.30",May-23
EREWASH BOROUGH COUNCIL,23690,Car Parking                   ,Credit/Debit Card Charges     ,30-Apr-2023,INTERNATIONAL PARKING SYSTEMS UK LTD    ,"3,178.04",May-23
EREWASH BOROUGH COUNCIL,23142,Long Eaton Market             ,Electricity                   ,19-Apr-2023,TOTALENERGIES GAS & POWER LTD           ,286.10,May-23
EREWASH BOROUGH COUNCIL,23143,Ilkeston Market               ,Electricity                   ,20-Apr-2023,TOTALENERGIES GAS & POWER LTD           ,904.64,May-23
EREWASH BOROUGH COUNCIL,23143,Shopmobility - Ilkeston       ,Electricity                   ,20-Apr-2023,TOTALENERGIES GAS & POWER LTD           ,529.18,May-23
EREWASH BOROUGH COUNCIL,23554,Sports Devt Coaching & Courses,Project Grants                ,28-Apr-2023,LEGACY LEISURE LTD                      ,423.00,May-23
EREWASH BOROUGH COUNCIL,23305,Commissioned Projects         ,Grants and Subscriptions      ,24-Apr-2023,KIRK HALLAM COMMUNITY ACADEMY           ,323.00,May-23
EREWASH BOROUGH COUNCIL,24113,Pedestrian Zones - Ilk and LE ,Reactive Maintenance          ,07-Mar-2023,STEELCRAFT FABRICATIONS                 ,500.00,May-23
EREWASH BOROUGH COUNCIL,24112,Pedestrian Zones - Ilk and LE ,Reactive Maintenance          ,29-Mar-2023,STEELCRAFT FABRICATIONS                 ,664.00,May-23
EREWASH BOROUGH COUNCIL,23253,Property and Estates          ,Repairs and Maintenance       ,19-Apr-2023,TECSERV UK                              ,"3,626.25",May-23
EREWASH BOROUGH COUNCIL,22917,Property and Estates          ,Repairs and Maintenance       ,13-Apr-2023,WATT ENERGY SAVER LTD                   ,"1,244.08",May-23
EREWASH BOROUGH COUNCIL,23248,Property and Estates          ,Repairs and Maintenance       ,18-Apr-2023,PEEL ELECTRICAL LTD                     ,300.00,May-23
EREWASH BOROUGH COUNCIL,22730,Property and Estates          ,Repairs and Maintenance       ,08-Apr-2023,MDB PLUMBING (NOTTM) LTD                ,280.94,May-23
EREWASH BOROUGH COUNCIL,23864,Property and Estates          ,Reactive Maintenance          ,03-May-2023,ALAN MCGOWAN ARCHITECTS LTD             ,850.00,May-23
EREWASH BOROUGH COUNCIL,23152,Property and Estates          ,Reactive Maintenance          ,20-Apr-2023,ALPHA PARTNER (MIDLANDS)  LIMITED       ,400.00,May-23
EREWASH BOROUGH COUNCIL,23240,Merlin Way Depot              ,PPM Mechanical and Equipment  ,19-Apr-2023,HORIZON SPECIAL CONTRACTING LTD         ,355.00,May-23
EREWASH BOROUGH COUNCIL,22881,Merlin Way Depot              ,PPM Mechanical and Equipment  ,08-Apr-2023,MDB PLUMBING (NOTTM) LTD                ,"1,341.92",May-23
EREWASH BOROUGH COUNCIL,22881,Merlin Way Depot              ,PPM Mechanical and Equipment  ,08-Apr-2023,MDB PLUMBING (NOTTM) LTD                ,588.62,May-23
EREWASH BOROUGH COUNCIL,23142,Merlin Way Depot              ,Electricity                   ,19-Apr-2023,TOTALENERGIES GAS & POWER LTD           ,"4,237.50",May-23
EREWASH BOROUGH COUNCIL,23144,Merlin Way Depot              ,Gas                           ,20-Apr-2023,TOTALENERGIES GAS & POWER LTD           ,676.14,May-23
EREWASH BOROUGH COUNCIL,24079,Merlin Way Depot              ,Metered Water                 ,01-May-2023,SCOTTISH WATER BUSINESS STREAM LIMITED  ,"1,217.27",May-23
EREWASH BOROUGH COUNCIL,23240,Civic Accommodation Long Eaton,PPM Mechanical and Equipment  ,19-Apr-2023,HORIZON SPECIAL CONTRACTING LTD         ,455.00,May-23
EREWASH BOROUGH COUNCIL,23240,Civic Accommodation Long Eaton,PPM Mechanical and Equipment  ,19-Apr-2023,HORIZON SPECIAL CONTRACTING LTD         ,705.00,May-23
EREWASH BOROUGH COUNCIL,23142,Civic Accommodation Long Eaton,Electricity                   ,19-Apr-2023,TOTALENERGIES GAS & POWER LTD           ,"3,764.05",May-23
EREWASH BOROUGH COUNCIL,23144,Civic Accommodation Long Eaton,Gas                           ,20-Apr-2023,TOTALENERGIES GAS & POWER LTD           ,"1,207.63",May-23
EREWASH BOROUGH COUNCIL,23240,Bridge House - Long Eaton     ,PPM Mechanical and Equipment  ,19-Apr-2023,HORIZON SPECIAL CONTRACTING LTD         ,455.00,May-23
EREWASH BOROUGH COUNCIL,23144,Bridge House - Long Eaton     ,Gas                           ,20-Apr-2023,TOTALENERGIES GAS & POWER LTD           ,370.66,May-23
EREWASH BOROUGH COUNCIL,23590,Civic Accommodation Ilkeston  ,Agency Staff                  ,28-Apr-2023,EXTRA PERSONNEL LTD                     ,276.66,May-23
EREWASH BOROUGH COUNCIL,23884,Civic Accommodation Ilkeston  ,PPM Mechanical and Equipment  ,30-Apr-2023,ORTON MECHANICAL SERVICES               ,402.59,May-23
EREWASH BOROUGH COUNCIL,23240,Civic Accommodation Ilkeston  ,PPM Mechanical and Equipment  ,19-Apr-2023,HORIZON SPECIAL CONTRACTING LTD         ,710.00,May-23
EREWASH BOROUGH COUNCIL,22972,Civic Accommodation Ilkeston  ,PPM Mechanical and Equipment  ,18-Apr-2023,PEEL ELECTRICAL LTD                     ,273.00,May-23
EREWASH BOROUGH COUNCIL,23142,Civic Accommodation Ilkeston  ,Electricity                   ,19-Apr-2023,TOTALENERGIES GAS & POWER LTD           ,"2,852.57",May-23
EREWASH BOROUGH COUNCIL,23143,Civic Accommodation Ilkeston  ,Electricity                   ,20-Apr-2023,TOTALENERGIES GAS & POWER LTD           ,830.71,May-23
EREWASH BOROUGH COUNCIL,23144,Civic Accommodation Ilkeston  ,Gas                           ,20-Apr-2023,TOTALENERGIES GAS & POWER LTD           ,"1,667.46",May-23
EREWASH BOROUGH COUNCIL,24079,Civic Accommodation Ilkeston  ,Metered Water                 ,01-May-2023,SCOTTISH WATER BUSINESS STREAM LIMITED  ,469.78,May-23
EREWASH BOROUGH COUNCIL,23143,Toll Bar House                ,Electricity                   ,20-Apr-2023,TOTALENERGIES GAS & POWER LTD           ,"8,284.80",May-23
EREWASH BOROUGH COUNCIL,24079,Toll Bar House                ,Metered Water                 ,01-May-2023,SCOTTISH WATER BUSINESS STREAM LIMITED  ,"1,356.38",May-23
EREWASH BOROUGH COUNCIL,22744,Toll Bar House                ,Alarms Planned Maintenence    ,31-Mar-2023,TECSERV UK                              ,256.76,May-23
EREWASH BOROUGH COUNCIL,23664,Toll Bar House                ,Alarms Planned Maintenence    ,28-Apr-2023,TECSERV UK                              ,256.76,May-23
EREWASH BOROUGH COUNCIL,23875,Toll Bar House                ,PPM Mechanical and Equipment  ,30-Apr-2023,ORTON MECHANICAL SERVICES               ,509.58,May-23
EREWASH BOROUGH COUNCIL,23142,Sandiacre Friesland Sports Ctr,Electricity                   ,19-Apr-2023,TOTALENERGIES GAS & POWER LTD           ,"1,679.71",May-23
EREWASH BOROUGH COUNCIL,23144,Sandiacre Friesland Sports Ctr,Gas                           ,20-Apr-2023,TOTALENERGIES GAS & POWER LTD           ,772.21,May-23
EREWASH BOROUGH COUNCIL,24079,Rutland Sports Park           ,Metered Water                 ,01-May-2023,SCOTTISH WATER BUSINESS STREAM LIMITED  ,292.63,May-23
EREWASH BOROUGH COUNCIL,22709,Chief Executives Office       ,Subscriptions                 ,29-Mar-2023,DERBYSHIRE COUNTY COUNCIL...            ,"2,250.00",May-23
EREWASH BOROUGH COUNCIL,22884,Chief Executives Office       ,Subscriptions                 ,07-Apr-2023,EAST MIDLANDS CHAMBER                   ,"1,600.00",May-23
EREWASH BOROUGH COUNCIL,22931,Compensation and Pensions     ,Compensatory Added Years      ,13-Apr-2023,DERBYSHIRE COUNTY COUNCIL...            ,"18,704.24",May-23
EREWASH BOROUGH COUNCIL,22708,Compensation and Pensions     ,Compensatory Added Years      ,05-Apr-2023,DERBYSHIRE COUNTY COUNCIL...            ,"20,510.48",May-23
EREWASH BOROUGH COUNCIL,23290,EBC Balance Sheet             ,Fuel Store                    ,14-Apr-2023,CERTAS ENERGY UK LIMITED T/A CARLTON FUE,"34,719.00",May-23
EREWASH BOROUGH COUNCIL,23619,EBC Balance Sheet             ,Payroll Coll Acc - Income Tax ,19-May-2023,HMRC CUMBERNAULD                        ,"72,732.99",May-23
EREWASH BOROUGH COUNCIL,23621,EBC Balance Sheet             ,Payroll Coll Acc - Income Tax ,19-May-2023,HMRC CUMBERNAULD                        ,343.20,May-23
EREWASH BOROUGH COUNCIL,23618,EBC Balance Sheet             ,Payroll Coll Acc Superanuation,17-May-2023,DERBYSHIRE COUNTY COUNCIL...            ,"167,253.54",May-23
EREWASH BOROUGH COUNCIL,23618,EBC Balance Sheet             ,Payroll Coll Acc Superanuation,17-May-2023,DERBYSHIRE COUNTY COUNCIL...            ,"41,834.00",May-23
EREWASH BOROUGH COUNCIL,23619,EBC Balance Sheet             ,Payroll Coll Acc National Ins ,19-May-2023,HMRC CUMBERNAULD                        ,"95,642.56",May-23
EREWASH BOROUGH COUNCIL,23621,EBC Balance Sheet             ,Payroll Coll Acc National Ins ,19-May-2023,HMRC CUMBERNAULD                        ,378.08,May-23
EREWASH BOROUGH COUNCIL,23619,EBC Balance Sheet             ,Payroll Coll Acc Student Loan ,19-May-2023,HMRC CUMBERNAULD                        ,"1,146.00",May-23
EREWASH BOROUGH COUNCIL,26139,EBC Balance Sheet             ,Lloyds Credit Card Suspense   ,02-May-2023,LLOYDS BANK PLC                         ,"5,357.92",May-23
EREWASH BOROUGH COUNCIL,26139,EBC Balance Sheet             ,Lloyds Credit Card Suspense   ,02-May-2023,LLOYDS BANK PLC                         ,971.78,May-23
EREWASH BOROUGH COUNCIL,27641,EBC Balance Sheet             ,NNDR Coll Fund Control Account,05-May-2023,"DEPT FOR LEVELLING UP,HOUSING&COMMUNITIE","977,242.00",May-23
EREWASH BOROUGH COUNCIL,27643,EBC Balance Sheet             ,NNDR Coll Fund Control Account,22-May-2023,"DEPT FOR LEVELLING UP,HOUSING&COMMUNITIE","977,242.00",May-23
EREWASH BOROUGH COUNCIL,24376,EBC Balance Sheet             ,EBC Fit for Work Scheme       ,23-May-2023,PARKWOOD LEISURE LTD                    ,464.00,May-23
EREWASH BOROUGH COUNCIL,24378,EBC Balance Sheet             ,Payroll Coll Acc - Trade Union,23-May-2023,UNISON                                  ,314.50,May-23
EREWASH BOROUGH COUNCIL,24373,EBC Balance Sheet             ,Payroll Coll Acc Labour Party ,23-May-2023,EREWASH LABOUR GROUP                    ,738.39,May-23
EREWASH BOROUGH COUNCIL,24380,EBC Balance Sheet             ,Payroll Coll Acc - AVCS       ,23-May-2023,PRUDENTIAL                              ,"5,040.97",May-23
EREWASH BOROUGH COUNCIL,23831,EBC Balance Sheet             ,Childcare Salary Sacrifice    ,05-May-2023,KIDDIVOUCHERS LTD                       ,568.00,May-23
EREWASH BOROUGH COUNCIL,24374,EBC Balance Sheet             ,Payroll Coll Acc Attmnt Orders,23-May-2023,CHILD MAINTENANCE SERVICE               ,400.00,May-23
EREWASH BOROUGH COUNCIL,24149,Leisure Services              ,Contracted Services           ,11-Apr-2023,WILKS HEAD & EVE LTD                    ,"1,000.00",May-23
EREWASH BOROUGH COUNCIL,24159,Planning                      ,Structural Property Works     ,15-May-2023,J TOMLINSON LIMITED                     ,"77,108.66",May-23
EREWASH BOROUGH COUNCIL,23357,Planning                      ,Structural Property Works     ,17-Apr-2023,BAILY GARNER LLP                        ,"4,175.34",May-23
EREWASH BOROUGH COUNCIL,22952,Planning                      ,Structural Property Works     ,14-Apr-2023,GEOTECHNICAL & ENVIRONMENTAL ASSOCIATES ,"11,883.00",May-23
EREWASH BOROUGH COUNCIL,23356,Planning                      ,External Property Works       ,26-Apr-2023,GATELEY HAMER LTD                       ,"4,000.00",May-23
EREWASH BOROUGH COUNCIL,23926,Regulatory and Housing Service,Disabled Facilities Grant     ,19-Apr-2023,DERBYSHIRE COUNTY COUNCIL...            ,"2,668.00",May-23
EREWASH BOROUGH COUNCIL,23924,Regulatory and Housing Service,Disabled Facilities Grant     ,23-Mar-2023,DERBYSHIRE COUNTY COUNCIL...            ,"5,750.00",May-23
EREWASH BOROUGH COUNCIL,23922,Regulatory and Housing Service,Disabled Facilities Grant     ,18-Apr-2023,DERBYSHIRE COUNTY COUNCIL...            ,"5,873.00",May-23
EREWASH BOROUGH COUNCIL,23927,Regulatory and Housing Service,Disabled Facilities Grant     ,18-Apr-2023,DERBYSHIRE COUNTY COUNCIL...            ,"5,935.00",May-23
EREWASH BOROUGH COUNCIL,23923,Regulatory and Housing Service,Disabled Facilities Grant     ,19-Apr-2023,DERBYSHIRE COUNTY COUNCIL...            ,"6,741.60",May-23
EREWASH BOROUGH COUNCIL,23925,Regulatory and Housing Service,Disabled Facilities Grant     ,06-Apr-2023,DERBYSHIRE COUNTY COUNCIL...            ,"6,864.36",May-23
EREWASH BOROUGH COUNCIL,23928,Regulatory and Housing Service,Disabled Facilities Grant     ,16-Mar-2023,DERBYSHIRE COUNTY COUNCIL...            ,"8,246.60",May-23
EREWASH BOROUGH COUNCIL,24157,Regulatory and Housing Service,Disabled Facilities Grant     ,03-May-2023,DERBYSHIRE COUNTY COUNCIL...            ,"3,026.00",May-23
EREWASH BOROUGH COUNCIL,24158,Regulatory and Housing Service,Disabled Facilities Grant     ,03-May-2023,DERBYSHIRE COUNTY COUNCIL...            ,"12,500.00",May-23
EREWASH BOROUGH COUNCIL,24418,Regulatory and Housing Service,Disabled Facilities Grant     ,03-May-2023,DERBYSHIRE COUNTY COUNCIL...            ,"6,792.28",May-23
EREWASH BOROUGH COUNCIL,23619,Human Resources               ,Apprenticeship Levy           ,19-May-2023,HMRC CUMBERNAULD                        ,"2,038.00",May-23
EREWASH BOROUGH COUNCIL,23619,Human Resources               ,Apprenticeship Levy           ,19-May-2023,HMRC CUMBERNAULD                        ,"1,250.00",May-23
EREWASH BOROUGH COUNCIL,25402,Human Resources               ,Recruitment Expenses          ,31-May-2023,DISCLOSURE & BARRING SERVICE            ,304.00,May-23
EREWASH BOROUGH COUNCIL,24360,Human Resources               ,Recruitment Expenses          ,31-Mar-2023,CAREERSINAUDIT.COM                      ,995.00,May-23
EREWASH BOROUGH COUNCIL,23611,Human Resources               ,Software Licences             ,23-Apr-2023,INSIGHT DIRECT (UK) LTD                 ,265.07,May-23
EREWASH BOROUGH COUNCIL,23813,,,03-May-2023,PENHAM EXCEL LIMITED                    ,791.15,May-23
EREWASH BOROUGH COUNCIL,24080,,,15-May-2023,PENHAM EXCEL LIMITED                    ,"1,191.78",May-23
